[Event "*** Titled Tuesday Blitz"]
[Site "Chess.com"]
[Date "2019.07.02"]
[Round "4"]
[White "larso"]
[Black "alishersuleymenov"]
[Result "1-0"]
[WhiteElo "2796"]
[BlackElo "2600"]
[TimeControl "180+2"]
[EndTime "13:54:36 PDT"]
[Termination "larso won by resignation"]

1. d4 {[%clk 0:03:01.9]} 1... Nf6 {[%clk 0:03:00.5]} 2. Bg5 {[%clk 0:03:01.5]}
2... e6 {[%clk 0:03:01.6]} 3. e4 {[%clk 0:03:02.2]} 3... h6 {[%clk 0:03:02.7]}
4. Bxf6 {[%clk 0:03:03.4]} 4... Qxf6 {[%clk 0:03:04.6]} 5. c3 {[%clk 0:03:05.1]}
5... g5 {[%clk 0:03:05.3]} 6. Nd2 {[%clk 0:03:06]} 6... Bg7 {[%clk 0:03:06.7]}
7. Bd3 {[%clk 0:03:07.2]} 7... b6 {[%clk 0:03:05.5]} 8. Ne2 {[%clk 0:03:08.2]}
8... Bb7 {[%clk 0:03:06.9]} 9. O-O {[%clk 0:03:09.8]} 9... Qe7 {[%clk
0:03:00.2]} 10. a4 {[%clk 0:03:10.2]} 10... a6 {[%clk 0:03:00.4]} 11. f4 {[%clk
0:03:09.3]} 11... d6 {[%clk 0:03:01.7]} 12. f5 {[%clk 0:03:05]} 12... Nd7 {[%clk
0:03:02.6]} 13. Ng3 {[%clk 0:03:03.2]} 13... Nf6 {[%clk 0:02:49.3]} 14. Nh5
{[%clk 0:02:45.8]} 14... Nxh5 {[%clk 0:02:48.3]} 15. Qxh5 {[%clk 0:02:47.7]}
15... exf5 {[%clk 0:02:16]} 16. Rxf5 {[%clk 0:02:46.7]} 16... O-O {[%clk
0:02:17.4]} 17. Raf1 {[%clk 0:02:44.8]} 17... b5 {[%clk 0:02:14.4]} 18. h4
{[%clk 0:02:44.7]} 18... Bc8 {[%clk 0:02:11]} 19. R5f2 {[%clk 0:02:42.7]} 19...
Be6 {[%clk 0:02:08.4]} 20. Nf3 {[%clk 0:02:36.3]} 20... f6 {[%clk 0:01:57.3]}
21. e5 {[%clk 0:02:30.5]} 21... Bf7 {[%clk 0:01:49.4]} 22. Bg6 {[%clk
0:02:29.4]} 22... dxe5 {[%clk 0:01:48.2]} 23. hxg5 {[%clk 0:02:29.2]} 23... Bxg6
{[%clk 0:01:35.5]} 24. Qxg6 {[%clk 0:02:31.1]} 24... fxg5 {[%clk 0:01:33.6]} 25.
Nxe5 {[%clk 0:02:28.5]} 25... Rxf2 {[%clk 0:01:29.7]} 26. Rxf2 {[%clk
0:02:30.4]} 26... Rf8 {[%clk 0:01:31.2]} 27. Rxf8+ {[%clk 0:02:29.6]} 27... Qxf8
{[%clk 0:01:32.5]} 28. Qe6+ {[%clk 0:02:28.2]} 28... Kh7 {[%clk 0:01:33.3]} 29.
Qg6+ {[%clk 0:02:28.9]} 29... Kg8 {[%clk 0:01:30.8]} 30. Qxa6 {[%clk 0:02:28.5]}
30... bxa4 {[%clk 0:01:26.2]} 31. Qxa4 {[%clk 0:02:09]} 31... Qf4 {[%clk
0:01:27]} 32. Qe8+ {[%clk 0:02:02.6]} 32... Kh7 {[%clk 0:01:27.1]} 33. Qg6+
{[%clk 0:02:03.5]} 33... Kg8 {[%clk 0:01:28.1]} 34. Qe6+ {[%clk 0:02:04.3]}
34... Kh7 {[%clk 0:01:29.1]} 35. Nd3 {[%clk 0:01:58.3]} 35... Qd2 {[%clk
0:01:24.8]} 36. Qe4+ {[%clk 0:01:57.9]} 36... Kh8 {[%clk 0:01:26.2]} 37. Kh2
{[%clk 0:01:49.5]} 37... Qc2 {[%clk 0:01:25.3]} 38. Kg3 {[%clk 0:01:49.3]} 38...
Qd1 {[%clk 0:01:22]} 39. Qf3 {[%clk 0:01:48]} 39... Qh1 {[%clk 0:01:18.7]} 40.
Kg4 {[%clk 0:01:45.4]} 40... Kh7 {[%clk 0:01:07]} 41. Kf5 {[%clk 0:01:42.8]}
41... Qa1 {[%clk 0:00:57.5]} 42. Qe4 {[%clk 0:01:39.1]} 42... Qa6 {[%clk
0:00:53.1]} 43. Kg4+ {[%clk 0:01:24.8]} 43... Kg8 {[%clk 0:00:53.5]} 44. Nc5
{[%clk 0:01:25.3]} 44... Qf1 {[%clk 0:00:52.4]} 45. Ne6 {[%clk 0:01:24.8]} 45...
Qd1+ {[%clk 0:00:31.9]} 46. Kf5 {[%clk 0:01:20.3]} 46... Qf1+ {[%clk 0:00:26.4]}
47. Kg4 {[%clk 0:01:18.4]} 47... Qd1+ {[%clk 0:00:26.1]} 48. Kg3 {[%clk
0:01:18.6]} 48... Qd2 {[%clk 0:00:18.5]} 49. Kh2 {[%clk 0:01:02.7]} 49... Qf2
{[%clk 0:00:18]} 50. c4 {[%clk 0:00:57]} 50... c5 {[%clk 0:00:10.2]} 51. dxc5
{[%clk 0:00:53.1]} 51... Qxb2 {[%clk 0:00:06.4]} 52. c6 {[%clk 0:00:42.5]} 52...
Be5+ {[%clk 0:00:04]} 53. Kh3 {[%clk 0:00:42.4]} 53... Qb3+ {[%clk 0:00:05.2]}
54. Kg4 {[%clk 0:00:41.1]} 54... Qd1+ {[%clk 0:00:05.5]} 55. Kf5 {[%clk
0:00:39.7]} 55... Bh2 {[%clk 0:00:02.5]} 56. Qd5 {[%clk 0:00:30]} 56... Qf1+
{[%clk 0:00:02.8]} 57. Kg6 {[%clk 0:00:20.4]} 57... Qf7+ {[%clk 0:00:02.5]} 58.
Kxh6 {[%clk 0:00:21.9]} 58... Qh7+ {[%clk 0:00:02.6]} 59. Kxg5 {[%clk
0:00:22.5]} 59... Qe7+ {[%clk 0:00:04]} 60. Kf5 {[%clk 0:00:22.6]} 60... Qh7+
{[%clk 0:00:03]} 61. Kg4 {[%clk 0:00:23.7]} 61... Qc2 {[%clk 0:00:03]} 62. Ng5+
{[%clk 0:00:24.4]} 62... Kh8 {[%clk 0:00:03.4]} 63. Qd8+ {[%clk 0:00:25.2]}
63... Kg7 {[%clk 0:00:04.8]} 64. Qe7+ {[%clk 0:00:26.5]} 64... Kh6 {[%clk
0:00:06.5]} 65. Qf6+ {[%clk 0:00:25.3]} 65... Qg6 {[%clk 0:00:06.4]} 66. Qh8+
{[%clk 0:00:26.6]} 1-0

[Event "*** Titled Tuesday Blitz"]
[Site "Chess.com"]
[Date "2019.07.02"]
[Round "4"]
[White "Padenie_Zvezd"]
[Black "vanea_03"]
[Result "1-0"]
[WhiteElo "2694"]
[BlackElo "2669"]
[TimeControl "180+2"]
[EndTime "13:54:53 PDT"]
[Termination "Padenie_Zvezd won by resignation"]

1. d4 {[%clk 0:02:45.6]} 1... Nf6 {[%clk 0:02:57.9]} 2. c4 {[%clk 0:02:44.3]}
2... e6 {[%clk 0:02:58.8]} 3. Nf3 {[%clk 0:02:45.1]} 3... d5 {[%clk 0:02:58.7]}
4. Nc3 {[%clk 0:02:43.3]} 4... Be7 {[%clk 0:02:55.7]} 5. Bg5 {[%clk 0:02:43.4]}
5... O-O {[%clk 0:02:56.1]} 6. e3 {[%clk 0:02:44]} 6... Nbd7 {[%clk 0:02:56.9]}
7. Rc1 {[%clk 0:02:43.4]} 7... h6 {[%clk 0:02:57.8]} 8. Bh4 {[%clk 0:02:44]}
8... c5 {[%clk 0:02:56.9]} 9. cxd5 {[%clk 0:02:36.2]} 9... Nxd5 {[%clk
0:02:55.4]} 10. Bxe7 {[%clk 0:02:38.1]} 10... Nxe7 {[%clk 0:02:57]} 11. Bb5
{[%clk 0:02:31.8]} 11... cxd4 {[%clk 0:02:48]} 12. Qxd4 {[%clk 0:02:27.6]} 12...
Nf6 {[%clk 0:02:39.4]} 13. O-O {[%clk 0:02:13.9]} 13... a6 {[%clk 0:02:38.5]}
14. Be2 {[%clk 0:02:12.2]} 14... b5 {[%clk 0:02:25.4]} 15. Qc5 {[%clk
0:01:59.3]} 15... Ned5 {[%clk 0:01:50.8]} 16. Rfd1 {[%clk 0:01:43.1]} 16... Bb7
{[%clk 0:01:47.4]} 17. e4 {[%clk 0:01:31.7]} 17... Rc8 {[%clk 0:01:42.1]} 18.
Qa7 {[%clk 0:01:25.4]} 18... Qb6 {[%clk 0:01:20.2]} 19. Qxb6 {[%clk 0:01:24.7]}
19... Nxb6 {[%clk 0:01:22.1]} 20. Rd6 {[%clk 0:01:17.7]} 20... Nc4 {[%clk
0:01:18.1]} 21. Bxc4 {[%clk 0:01:17.6]} 21... Rxc4 {[%clk 0:01:20]} 22. Nd2
{[%clk 0:01:00.8]} 22... Rc7 {[%clk 0:01:14.5]} 23. f3 {[%clk 0:00:55.9]} 23...
Rfc8 {[%clk 0:01:08.2]} 24. Nb3 {[%clk 0:00:56.2]} 24... Nd7 {[%clk 0:01:00.3]}
25. Rcd1 {[%clk 0:00:46.4]} 25... Ne5 {[%clk 0:00:59.3]} 26. Rd8+ {[%clk
0:00:44.7]} 26... Rxd8 {[%clk 0:01:00.5]} 27. Rxd8+ {[%clk 0:00:46.6]} 27... Kh7
{[%clk 0:01:00.4]} 28. Na5 {[%clk 0:00:47.1]} 28... b4 {[%clk 0:00:51.6]} 29.
Ne2 {[%clk 0:00:48.3]} 29... Bc6 {[%clk 0:00:42.1]} 30. f4 {[%clk 0:00:29.1]}
30... Bb5 {[%clk 0:00:37.4]} 31. fxe5 {[%clk 0:00:17]} 31... Bxe2 {[%clk
0:00:37.6]} 32. Rd2 {[%clk 0:00:18.9]} 32... Bb5 {[%clk 0:00:33.2]} 33. Nb3
{[%clk 0:00:13.3]} 33... Kg6 {[%clk 0:00:18]} 34. Kf2 {[%clk 0:00:14]} 34... Rc4
{[%clk 0:00:18.1]} 35. Nd4 {[%clk 0:00:14.7]} 35... Be8 {[%clk 0:00:13.5]} 36.
Ke3 {[%clk 0:00:15.4]} 36... a5 {[%clk 0:00:14.7]} 37. Rc2 {[%clk 0:00:15.2]}
37... Rxc2 {[%clk 0:00:15]} 38. Nxc2 {[%clk 0:00:17.1]} 38... f6 {[%clk
0:00:15.8]} 39. Nd4 {[%clk 0:00:17.1]} 39... fxe5 {[%clk 0:00:15.6]} 40. Nxe6
{[%clk 0:00:16.4]} 40... Kf6 {[%clk 0:00:16.6]} 41. Nc5 {[%clk 0:00:15.3]} 41...
Bf7 {[%clk 0:00:15]} 42. b3 {[%clk 0:00:12.9]} 42... Ke7 {[%clk 0:00:16.2]} 43.
Nb7 {[%clk 0:00:12.7]} 43... a4 {[%clk 0:00:17.4]} 44. Nc5 {[%clk 0:00:12.8]}
44... a3 {[%clk 0:00:13.9]} 45. Nd3 {[%clk 0:00:08.5]} 45... Bxb3 {[%clk
0:00:11.9]} 46. Nxb4 {[%clk 0:00:10.4]} 46... Be6 {[%clk 0:00:10.6]} 47. Nc2
{[%clk 0:00:10.8]} 47... Bxa2 {[%clk 0:00:11.7]} 48. Nxa3 {[%clk 0:00:12.7]}
48... Be6 {[%clk 0:00:13.3]} 49. Nb5 {[%clk 0:00:13.7]} 49... Kf6 {[%clk
0:00:14]} 50. Nc3 {[%clk 0:00:13.6]} 50... Bf7 {[%clk 0:00:15]} 51. Kd3 {[%clk
0:00:14.5]} 51... Be6 {[%clk 0:00:16]} 52. Nd5+ {[%clk 0:00:13.2]} 52... Kg5
{[%clk 0:00:17.1]} 53. Kc4 {[%clk 0:00:13.3]} 53... Kg6 {[%clk 0:00:14]} 54. Kc5
{[%clk 0:00:14.2]} 54... Bg4 {[%clk 0:00:06.1]} 55. Kd6 {[%clk 0:00:14.5]} 55...
Be2 {[%clk 0:00:07.3]} 56. Kxe5 {[%clk 0:00:15.3]} 56... Bf1 {[%clk 0:00:09.2]}
57. Ne3 {[%clk 0:00:14.4]} 57... Ba6 {[%clk 0:00:10.8]} 58. Kd6 {[%clk
0:00:15.5]} 58... Kg5 {[%clk 0:00:10.5]} 59. e5 {[%clk 0:00:17.4]} 59... Kf4
{[%clk 0:00:12]} 60. Nd5+ {[%clk 0:00:18.1]} 60... Ke4 {[%clk 0:00:11.8]} 61. e6
{[%clk 0:00:20]} 61... Kf5 {[%clk 0:00:09.8]} 62. Nc7 {[%clk 0:00:14.3]} 62...
Bc4 {[%clk 0:00:11.1]} 63. e7 {[%clk 0:00:15.6]} 63... Bf7 {[%clk 0:00:12.6]}
64. e8=Q {[%clk 0:00:14.7]} 64... Bxe8 {[%clk 0:00:13.8]} 65. Nxe8 {[%clk
0:00:16.6]} 65... g5 {[%clk 0:00:15.4]} 66. Kd5 {[%clk 0:00:17.5]} 66... Kf4
{[%clk 0:00:16.7]} 67. Kd4 {[%clk 0:00:18.8]} 67... h5 {[%clk 0:00:17.5]} 68.
Nf6 {[%clk 0:00:19.5]} 68... h4 {[%clk 0:00:18]} 69. Nd5+ {[%clk 0:00:20.8]}
69... Kf5 {[%clk 0:00:19.3]} 70. h3 {[%clk 0:00:21.4]} 1-0

[Event "*** Titled Tuesday Blitz"]
[Site "Chess.com"]
[Date "2019.07.02"]
[Round "4"]
[White "novocane"]
[Black "silverback96"]
[Result "1-0"]
[WhiteElo "2251"]
[BlackElo "2092"]
[TimeControl "180+2"]
[EndTime "13:55:02 PDT"]
[Termination "novocane won by resignation"]

1. d4 {[%clk 0:03:01.8]} 1... Nf6 {[%clk 0:02:59]} 2. c4 {[%clk 0:03:02.4]} 2...
g6 {[%clk 0:03:00.3]} 3. Nc3 {[%clk 0:03:03]} 3... Bg7 {[%clk 0:03:02]} 4. e4
{[%clk 0:03:03]} 4... O-O {[%clk 0:03:03.6]} 5. f3 {[%clk 0:02:59.5]} 5... c5
{[%clk 0:03:02.1]} 6. d5 {[%clk 0:02:59.1]} 6... d6 {[%clk 0:03:00.7]} 7. Bg5
{[%clk 0:02:57.4]} 7... h6 {[%clk 0:02:53.7]} 8. Be3 {[%clk 0:02:57.8]} 8... e6
{[%clk 0:02:53.5]} 9. Qd2 {[%clk 0:02:58.4]} 9... exd5 {[%clk 0:02:53.3]} 10.
cxd5 {[%clk 0:02:59.6]} 10... a6 {[%clk 0:02:51.5]} 11. a4 {[%clk 0:02:59.7]}
11... h5 {[%clk 0:02:49]} 12. Bg5 {[%clk 0:02:55.8]} 12... Qe8 {[%clk 0:02:46]}
13. Nge2 {[%clk 0:02:50.2]} 13... Nbd7 {[%clk 0:02:45.6]} 14. Ng3 {[%clk
0:02:43.7]} 14... Nh7 {[%clk 0:02:46.3]} 15. Bh6 {[%clk 0:02:41.5]} 15... h4
{[%clk 0:02:44.8]} 16. Bxg7 {[%clk 0:02:26]} 16... Kxg7 {[%clk 0:02:44.6]} 17.
Nge2 {[%clk 0:02:25.8]} 17... Ne5 {[%clk 0:02:43.9]} 18. Nf4 {[%clk 0:02:20.1]}
18... f5 {[%clk 0:02:44.8]} 19. Be2 {[%clk 0:02:13.7]} 19... g5 {[%clk
0:02:45.8]} 20. Ne6+ {[%clk 0:02:13.2]} 20... Bxe6 {[%clk 0:02:45.7]} 21. dxe6
{[%clk 0:02:14.4]} 21... Qxe6 {[%clk 0:02:42.9]} 22. exf5 {[%clk 0:01:57.2]}
22... Rxf5 {[%clk 0:02:31.3]} 23. O-O {[%clk 0:01:54.9]} 23... Rd8 {[%clk
0:02:30]} 24. f4 {[%clk 0:01:43.6]} 24... Ng6 {[%clk 0:02:16.6]} 25. fxg5 {[%clk
0:01:23.6]} 25... Rxg5 {[%clk 0:02:15.9]} 26. Rae1 {[%clk 0:01:10.7]} 26... Ne5
{[%clk 0:01:59.1]} 27. Ne4 {[%clk 0:01:05.2]} 27... Rxg2+ {[%clk 0:01:53]} 28.
Kxg2 {[%clk 0:01:05.9]} 28... Qg6+ {[%clk 0:01:54.5]} 29. Kh3 {[%clk 0:00:53.9]}
29... Qxe4 {[%clk 0:01:50]} 30. Rg1+ {[%clk 0:00:52.6]} 30... Ng6 {[%clk
0:01:43]} 31. Rxg6+ {[%clk 0:00:32.6]} 31... Kxg6 {[%clk 0:01:41.5]} 32. Bd3
{[%clk 0:00:33.3]} 32... Ng5+ {[%clk 0:01:42.3]} 33. Qxg5+ {[%clk 0:00:26.4]}
33... Kxg5 {[%clk 0:01:44.2]} 34. Rxe4 {[%clk 0:00:27.6]} 34... d5 {[%clk
0:01:42.3]} 35. Rg4+ {[%clk 0:00:23.1]} 35... Kf6 {[%clk 0:01:41.1]} 36. Rxh4
{[%clk 0:00:23.9]} 36... c4 {[%clk 0:01:42.6]} 37. Bf1 {[%clk 0:00:16.1]} 37...
b5 {[%clk 0:01:41.5]} 38. Rh6+ {[%clk 0:00:16]} 38... Ke5 {[%clk 0:01:39.5]} 39.
Rxa6 {[%clk 0:00:16.9]} 39... d4 {[%clk 0:01:33.5]} 40. axb5 {[%clk 0:00:16.6]}
40... d3 {[%clk 0:01:35]} 41. Ra1 {[%clk 0:00:17]} 41... Kd4 {[%clk 0:01:32.6]}
42. b6 {[%clk 0:00:16.7]} 42... Rb8 {[%clk 0:01:31.2]} 43. Ra6 {[%clk
0:00:08.8]} 43... Ke3 {[%clk 0:01:31.4]} 44. Ra1 {[%clk 0:00:08.5]} 44... Rxb6
{[%clk 0:01:29.7]} 45. Kg4 {[%clk 0:00:10]} 45... Rxb2 {[%clk 0:01:29.3]} 46. h4
{[%clk 0:00:10.5]} 46... Rc2 {[%clk 0:01:14.8]} 47. h5 {[%clk 0:00:11.3]} 47...
d2 {[%clk 0:01:14.7]} 48. Rd1 {[%clk 0:00:10.7]} 48... c3 {[%clk 0:01:16]} 49.
h6 {[%clk 0:00:11.8]} 49... Rc1 {[%clk 0:01:15.8]} 50. h7 {[%clk 0:00:09.3]}
50... Rxd1 {[%clk 0:01:16.6]} 51. h8=Q {[%clk 0:00:10.6]} 51... Rxf1 {[%clk
0:01:16.8]} 52. Qxc3+ {[%clk 0:00:11.8]} 52... Ke2 {[%clk 0:01:16.5]} 53. Qc2
{[%clk 0:00:07.4]} 53... Rg1+ {[%clk 0:01:12.7]} 54. Kf4 {[%clk 0:00:07.5]}
54... Ke1 {[%clk 0:01:04.9]} 55. Ke3 {[%clk 0:00:05.6]} 55... Rg3+ {[%clk
0:00:59.2]} 56. Kf4 {[%clk 0:00:07]} 56... Rg2 {[%clk 0:00:35]} 57. Qe4+ {[%clk
0:00:06.8]} 57... Kf1 {[%clk 0:00:32.2]} 58. Qd3+ {[%clk 0:00:06.9]} 58... Re2
{[%clk 0:00:32.7]} 59. Kf3 {[%clk 0:00:07.7]} 59... d1=Q {[%clk 0:00:30.2]} 60.
Qxd1+ {[%clk 0:00:08.9]} 60... Re1 {[%clk 0:00:32.1]} 61. Qd2 {[%clk 0:00:09.5]}
1-0

[Event "*** Titled Tuesday Blitz"]
[Site "Chess.com"]
[Date "2019.07.02"]
[Round "4"]
[White "kosya4ok"]
[Black "shnitez"]
[Result "1/2-1/2"]
[WhiteElo "2761"]
[BlackElo "2571"]
[TimeControl "180+2"]
[EndTime "13:55:07 PDT"]
[Termination "Game drawn by repetition"]

1. c4 {[%clk 0:02:59.9]} 1... Nf6 {[%clk 0:02:57.2]} 2. Nc3 {[%clk 0:03:00.5]}
2... b6 {[%clk 0:01:42.1]} 3. e4 {[%clk 0:02:59.4]} 3... e5 {[%clk 0:01:37.9]}
4. Nf3 {[%clk 0:02:58.7]} 4... Nc6 {[%clk 0:01:36.6]} 5. a3 {[%clk 0:02:58]}
5... a5 {[%clk 0:01:35.8]} 6. d4 {[%clk 0:02:56]} 6... exd4 {[%clk 0:01:35.1]}
7. Nxd4 {[%clk 0:02:57.9]} 7... Nxd4 {[%clk 0:01:36.3]} 8. Qxd4 {[%clk
0:02:59.8]} 8... Bc5 {[%clk 0:01:37.8]} 9. Qd3 {[%clk 0:02:57.7]} 9... O-O
{[%clk 0:01:36.8]} 10. f3 {[%clk 0:02:58.1]} 10... h6 {[%clk 0:01:35.7]} 11. Be3
{[%clk 0:02:54]} 11... Bxe3 {[%clk 0:01:36.3]} 12. Qxe3 {[%clk 0:02:54.9]} 12...
Re8 {[%clk 0:01:35.6]} 13. Be2 {[%clk 0:02:53.6]} 13... d6 {[%clk 0:01:36]} 14.
O-O {[%clk 0:02:53.3]} 14... a4 {[%clk 0:01:33.4]} 15. Rfd1 {[%clk 0:02:47.5]}
15... Nd7 {[%clk 0:01:32.6]} 16. Rd5 {[%clk 0:02:30.9]} 16... Nc5 {[%clk
0:01:32.1]} 17. Qf4 {[%clk 0:02:25.7]} 17... Qe7 {[%clk 0:01:20.7]} 18. Rad1
{[%clk 0:02:18.2]} 18... Bb7 {[%clk 0:01:18.1]} 19. Rh5 {[%clk 0:02:17.9]} 19...
Ra5 {[%clk 0:01:11.6]} 20. Qg3 {[%clk 0:02:07.5]} 20... Qf6 {[%clk 0:01:09.7]}
21. Rf5 {[%clk 0:02:05.7]} 21... Qg6 {[%clk 0:01:02.5]} 22. Qf2 {[%clk
0:02:04.2]} 22... Bc8 {[%clk 0:00:53.9]} 23. Rfd5 {[%clk 0:02:00.6]} 23... Be6
{[%clk 0:00:45.8]} 24. R5d2 {[%clk 0:01:57.6]} 24... Nb3 {[%clk 0:00:46.2]} 25.
Rc2 {[%clk 0:01:58.3]} 25... f5 {[%clk 0:00:42.3]} 26. Bd3 {[%clk 0:01:53.6]}
26... Nc5 {[%clk 0:00:41]} 27. exf5 {[%clk 0:01:53.1]} 27... Nxd3 {[%clk
0:00:24.6]} 28. fxg6 {[%clk 0:01:54]} 28... Nxf2 {[%clk 0:00:25.8]} 29. Kxf2
{[%clk 0:01:55.4]} 29... Bxc4 {[%clk 0:00:25.8]} 30. g4 {[%clk 0:01:52.7]} 30...
Bb3 {[%clk 0:00:26.6]} 31. Rdd2 {[%clk 0:01:51.1]} 31... Bxc2 {[%clk 0:00:27.7]}
32. Rxc2 {[%clk 0:01:53]} 32... Re6 {[%clk 0:00:26.6]} 33. Ne4 {[%clk
0:01:50.3]} 33... c5 {[%clk 0:00:20.6]} 34. Rd2 {[%clk 0:01:51.5]} 34... Rxg6
{[%clk 0:00:21.2]} 35. Nxd6 {[%clk 0:01:52.9]} 35... Re6 {[%clk 0:00:19.8]} 36.
Nf5 {[%clk 0:01:53]} 36... Rb5 {[%clk 0:00:18.9]} 37. h4 {[%clk 0:01:50.1]}
37... Rb3 {[%clk 0:00:19.7]} 38. h5 {[%clk 0:01:50.7]} 38... b5 {[%clk
0:00:18.2]} 39. Kg3 {[%clk 0:01:51.3]} 39... b4 {[%clk 0:00:19.1]} 40. axb4
{[%clk 0:01:52.8]} 40... cxb4 {[%clk 0:00:20.7]} 41. Nd4 {[%clk 0:01:51.5]}
41... Ree3 {[%clk 0:00:21]} 42. Nxb3 {[%clk 0:01:51.8]} 42... Rxb3 {[%clk
0:00:22.9]} 43. Kf4 {[%clk 0:01:51.5]} 43... Kh7 {[%clk 0:00:17.1]} 44. Ke4
{[%clk 0:01:50.2]} 44... a3 {[%clk 0:00:17.8]} 45. bxa3 {[%clk 0:01:52.1]} 45...
bxa3 {[%clk 0:00:18.8]} 46. Rd7 {[%clk 0:01:52.2]} 46... Rb4+ {[%clk 0:00:18.7]}
47. Ke3 {[%clk 0:01:49]} 47... Ra4 {[%clk 0:00:19.3]} 48. Rd1 {[%clk 0:01:50.5]}
48... a2 {[%clk 0:00:20.1]} 49. Ra1 {[%clk 0:01:52]} 49... Kg8 {[%clk
0:00:21.3]} 50. Kd3 {[%clk 0:01:51.9]} 50... Kf7 {[%clk 0:00:22.5]} 51. Kc3
{[%clk 0:01:53.8]} 51... Ra3+ {[%clk 0:00:21.2]} 52. Kb4 {[%clk 0:01:51.4]}
52... Rxf3 {[%clk 0:00:22.5]} 53. Rxa2 {[%clk 0:01:53]} 53... Rf4+ {[%clk
0:00:23.2]} 54. Kc5 {[%clk 0:01:53.5]} 54... Rxg4 {[%clk 0:00:25.1]} 55. Rh2
{[%clk 0:01:53.8]} 55... Ke6 {[%clk 0:00:22.6]} 56. Rh1 {[%clk 0:01:53.3]} 56...
Kf5 {[%clk 0:00:20.4]} 57. Kd5 {[%clk 0:01:54]} 57... Kg5 {[%clk 0:00:21.3]} 58.
Ke5 {[%clk 0:01:54.5]} 58... Rg2 {[%clk 0:00:22.3]} 59. Ke4 {[%clk 0:01:54]}
59... Rg3 {[%clk 0:00:14.4]} 60. Rh2 {[%clk 0:01:52.7]} 60... Kg4 {[%clk
0:00:15.3]} 61. Rh1 {[%clk 0:01:53.9]} 61... Rg2 {[%clk 0:00:14.1]} 62. Ke3
{[%clk 0:01:54.6]} 62... Kg3 {[%clk 0:00:13.1]} 63. Ke4 {[%clk 0:01:55.7]} 63...
Kg4 {[%clk 0:00:11.9]} 64. Ke3 {[%clk 0:01:56.5]} 64... Rg3+ {[%clk 0:00:10.1]}
65. Ke4 {[%clk 0:01:57.7]} 65... Kg5 {[%clk 0:00:08.6]} 66. Rh2 {[%clk
0:01:57.8]} 66... Rg1 {[%clk 0:00:07.8]} 67. Kf3 {[%clk 0:01:50.6]} 67... Rg4
{[%clk 0:00:05.9]} 68. Rh1 {[%clk 0:01:50.7]} 68... Ra4 {[%clk 0:00:03.7]} 69.
Rg1+ {[%clk 0:01:50.5]} 69... Kf6 {[%clk 0:00:04.9]} 70. Rh1 {[%clk 0:01:50]}
70... Rb4 {[%clk 0:00:04.6]} 71. Ke3 {[%clk 0:01:47]} 71... Ra4 {[%clk
0:00:05.3]} 72. Kf3 {[%clk 0:01:41.8]} 72... Ra5 {[%clk 0:00:06.5]} 73. Kf4
{[%clk 0:01:42.4]} 73... Ra3 {[%clk 0:00:07]} 74. Kg4 {[%clk 0:01:41.9]} 74...
Rb3 {[%clk 0:00:07.6]} 75. Rf1+ {[%clk 0:01:41.6]} 75... Ke7 {[%clk 0:00:08.8]}
76. Re1+ {[%clk 0:01:42.6]} 76... Kf7 {[%clk 0:00:09.5]} 77. Rf1+ {[%clk
0:01:43.5]} 77... Kg8 {[%clk 0:00:10.8]} 78. Rf4 {[%clk 0:01:43.2]} 78... Rb5
{[%clk 0:00:10.7]} 79. Kh4 {[%clk 0:01:44]} 79... Ra5 {[%clk 0:00:10.3]} 80. Kg4
{[%clk 0:01:44.3]} 80... Ra7 {[%clk 0:00:11.3]} 81. Rc4 {[%clk 0:01:39.5]} 81...
Rf7 {[%clk 0:00:10.9]} 82. Rc8+ {[%clk 0:01:40.1]} 82... Kh7 {[%clk 0:00:12.2]}
83. Rc4 {[%clk 0:01:39.5]} 83... Rf1 {[%clk 0:00:12.8]} 84. Rc8 {[%clk
0:01:35.3]} 84... Rg1+ {[%clk 0:00:13.3]} 85. Kh4 {[%clk 0:01:36.4]} 85... Rh1+
{[%clk 0:00:13.6]} 86. Kg4 {[%clk 0:01:37.6]} 86... Rg1+ {[%clk 0:00:14.7]} 87.
Kh4 {[%clk 0:01:38.8]} 87... Rh1+ {[%clk 0:00:15.9]} 88. Kg4 {[%clk 0:01:40.1]}
88... Rg1+ {[%clk 0:00:17.2]} 1/2-1/2